[Event "*** Titled Tuesday Blitz"]
[Site "Chess.com"]
[Date "2021.03.16"]
[Round "8"]
[White "CraiggoryC"]
[Black "JiiHart"]
[Result "1-0"]
[WhiteElo "2294"]
[BlackElo "2075"]
[TimeControl "180+1"]
[EndTime "11:27:48 PDT"]
[Termination "CraiggoryC won by checkmate"]

1. e4 {[%clk 0:03:00.9]} 1... c5 {[%clk 0:02:59.3]} 2. Nf3 {[%clk 0:03:00.7]}
2... Nc6 {[%clk 0:02:59.5]} 3. d4 {[%clk 0:03:00.8]} 3... cxd4 {[%clk 0:03:00]}
4. Nxd4 {[%clk 0:03:01.7]} 4... Nf6 {[%clk 0:02:59.2]} 5. Nc3 {[%clk 0:03:01.9]}
5... d6 {[%clk 0:02:59.7]} 6. Bc4 {[%clk 0:03:00.7]} 6... e6 {[%clk 0:02:59.3]}
7. Be3 {[%clk 0:02:56.8]} 7... a6 {[%clk 0:02:58.9]} 8. Qe2 {[%clk 0:02:56.1]}
8... Qc7 {[%clk 0:02:57.3]} 9. Bb3 {[%clk 0:02:51.5]} 9... Bd7 {[%clk
0:02:53.6]} 10. O-O-O {[%clk 0:02:51.1]} 10... b5 {[%clk 0:02:45.1]} 11. Nxc6
{[%clk 0:02:31]} 11... Bxc6 {[%clk 0:02:42.8]} 12. f3 {[%clk 0:02:12.4]} 12...
Be7 {[%clk 0:02:38.3]} 13. Qf2 {[%clk 0:02:05.3]} 13... Rb8 {[%clk 0:02:32.9]}
14. g4 {[%clk 0:02:03.1]} 14... a5 {[%clk 0:02:30.9]} 15. a4 {[%clk 0:01:51.2]}
15... bxa4 {[%clk 0:02:26.2]} 16. Bxa4 {[%clk 0:01:39.5]} 16... O-O {[%clk
0:02:22.2]} 17. Bxc6 {[%clk 0:01:30]} 17... Qxc6 {[%clk 0:02:22]} 18. g5 {[%clk
0:01:27]} 18... Nd7 {[%clk 0:02:21.1]} 19. h4 {[%clk 0:01:14.2]} 19... a4 {[%clk
0:02:10.3]} 20. Ne2 {[%clk 0:01:05.2]} 20... e5 {[%clk 0:01:56.4]} 21. Nc3
{[%clk 0:00:45.2]} 21... a3 {[%clk 0:01:52.5]} 22. Nd5 {[%clk 0:00:43.6]} 22...
axb2+ {[%clk 0:01:51.1]} 23. Kd2 {[%clk 0:00:30.1]} 23... Bd8 {[%clk 0:01:49]}
24. h5 {[%clk 0:00:24]} 24... Ba5+ {[%clk 0:01:46.7]} 25. c3 {[%clk 0:00:18.3]}
25... Qb5 {[%clk 0:01:18.5]} 26. g6 {[%clk 0:00:14.5]} 26... fxg6 {[%clk
0:01:11.5]} 27. hxg6 {[%clk 0:00:14.4]} 27... h6 {[%clk 0:00:55.4]} 28. Bxh6
{[%clk 0:00:12.8]} 28... Bxc3+ {[%clk 0:00:51.3]} 29. Nxc3 {[%clk 0:00:12]}
29... Qc5 {[%clk 0:00:36.6]} 30. Be3 {[%clk 0:00:11.8]} 30... Qxc3+ {[%clk
0:00:26.1]} 31. Kxc3 {[%clk 0:00:11.6]} 31... Rfc8+ {[%clk 0:00:26.7]} 32. Kd2
{[%clk 0:00:11.4]} 32... Nb6 {[%clk 0:00:20.2]} 33. Rh8+ {[%clk 0:00:10.5]}
33... Kxh8 {[%clk 0:00:18.8]} 34. Qh2+ {[%clk 0:00:10.7]} 34... Kg8 {[%clk
0:00:19.2]} 35. Qh7+ {[%clk 0:00:10.8]} 35... Kf8 {[%clk 0:00:19.5]} 36. Qh8+
{[%clk 0:00:11.2]} 36... Ke7 {[%clk 0:00:19.4]} 37. Qxg7+ {[%clk 0:00:11.8]}
37... Kd8 {[%clk 0:00:14.5]} 38. Bg5+ {[%clk 0:00:11.8]} 38... Ke8 {[%clk
0:00:13.4]} 39. Qf7# {[%clk 0:00:12.5]} 1-0

[Event "*** Titled Tuesday Blitz"]
[Site "Chess.com"]
[Date "2021.03.16"]
[Round "8"]
[White "DonBroca"]
[Black "DonPreuss"]
[Result "1-0"]
[WhiteElo "2214"]
[BlackElo "2279"]
[TimeControl "180+1"]
[EndTime "11:27:49 PDT"]
[Termination "DonBroca won on time"]

1. e4 {[%clk 0:03:00.9]} 1... e5 {[%clk 0:02:58.7]} 2. Nf3 {[%clk 0:03:01.2]}
2... d5 {[%clk 0:02:59.1]} 3. Nxe5 {[%clk 0:03:00.1]} 3... Bd6 {[%clk
0:02:58.5]} 4. d4 {[%clk 0:02:57.5]} 4... dxe4 {[%clk 0:02:58.6]} 5. Nc4 {[%clk
0:02:57.1]} 5... Ne7 {[%clk 0:02:57.3]} 6. Nxd6+ {[%clk 0:02:56.8]} 6... cxd6
{[%clk 0:02:57.6]} 7. Bg5 {[%clk 0:02:55.9]} 7... f6 {[%clk 0:02:56.6]} 8. Bh4
{[%clk 0:02:55.5]} 8... Ng6 {[%clk 0:02:56.7]} 9. Bg3 {[%clk 0:02:55.9]} 9... f5
{[%clk 0:02:54.4]} 10. h4 {[%clk 0:02:32.9]} 10... f4 {[%clk 0:02:47.3]} 11. h5
{[%clk 0:02:31.3]} 11... fxg3 {[%clk 0:02:44.8]} 12. hxg6 {[%clk 0:02:30.8]}
12... gxf2+ {[%clk 0:02:38.1]} 13. Kxf2 {[%clk 0:02:29]} 13... O-O+ {[%clk
0:02:06.6]} 14. Kg1 {[%clk 0:02:29.4]} 14... h6 {[%clk 0:01:52]} 15. Qd2 {[%clk
0:02:24.6]} 15... Qf6 {[%clk 0:01:45.3]} 16. Bc4+ {[%clk 0:02:19.6]} 16... Be6
{[%clk 0:01:45.5]} 17. Bxe6+ {[%clk 0:02:11.5]} 17... Qxe6 {[%clk 0:01:45.6]}
18. Qe3 {[%clk 0:01:56.3]} 18... Qxg6 {[%clk 0:01:44.3]} 19. Nc3 {[%clk
0:01:55.8]} 19... Nc6 {[%clk 0:01:36.8]} 20. Qxe4 {[%clk 0:01:33.8]} 20... Qxe4
{[%clk 0:01:28.4]} 21. Nxe4 {[%clk 0:01:34.7]} 21... Nxd4 {[%clk 0:01:28.2]} 22.
Nxd6 {[%clk 0:01:28]} 22... Rf6 {[%clk 0:00:59.8]} 23. Ne4 {[%clk 0:01:08.8]}
23... Ne2+ {[%clk 0:00:51.7]} 24. Kh2 {[%clk 0:01:08.4]} 24... Rf4 {[%clk
0:00:52.3]} 25. g3 {[%clk 0:01:00.7]} 25... Rxe4 {[%clk 0:00:52.4]} 26. Rhe1
{[%clk 0:01:01.3]} 26... Rae8 {[%clk 0:00:51.3]} 27. Rad1 {[%clk 0:01:00.5]}
27... Re3 {[%clk 0:00:38.8]} 28. Rd2 {[%clk 0:01:00]} 28... Nxg3 {[%clk
0:00:33.4]} 29. Rxe3 {[%clk 0:00:48.3]} 29... Rxe3 {[%clk 0:00:33.1]} 30. Rd7
{[%clk 0:00:49.2]} 30... Kh7 {[%clk 0:00:32.6]} 31. Rxb7 {[%clk 0:00:49]} 31...
Nf5 {[%clk 0:00:30.1]} 32. c3 {[%clk 0:00:46.2]} 32... h5 {[%clk 0:00:22.1]} 33.
a4 {[%clk 0:00:45.9]} 33... a5 {[%clk 0:00:21.3]} 34. Rb5 {[%clk 0:00:44.9]}
34... g6 {[%clk 0:00:20.2]} 35. Rxa5 {[%clk 0:00:45.3]} 35... h4 {[%clk
0:00:20.2]} 36. Rb5 {[%clk 0:00:39.4]} 36... Kh6 {[%clk 0:00:20.6]} 37. a5
{[%clk 0:00:38.7]} 37... Kh5 {[%clk 0:00:20.2]} 38. a6 {[%clk 0:00:38.3]} 38...
Kg4 {[%clk 0:00:19.7]} 39. a7 {[%clk 0:00:37.1]} 39... Re2+ {[%clk 0:00:19.7]}
40. Kg1 {[%clk 0:00:34.8]} 40... Kg3 {[%clk 0:00:14.1]} 41. Kf1 {[%clk
0:00:32.5]} 41... Re8 {[%clk 0:00:03.8]} 42. Rb8 {[%clk 0:00:31.6]} 1-0

[Event "*** Titled Tuesday Blitz"]
[Site "Chess.com"]
[Date "2021.03.16"]
[Round "8"]
[White "novocane"]
[Black "NishaOnYoutube"]
[Result "0-1"]
[WhiteElo "2230"]
[BlackElo "2173"]
[TimeControl "180+1"]
[EndTime "11:27:49 PDT"]
[Termination "NishaOnYoutube won by resignation"]

1. d4 {[%clk 0:02:59.3]} 1... f5 {[%clk 0:02:58.1]} 2. Bg5 {[%clk 0:02:59.1]}
2... d5 {[%clk 0:02:43.7]} 3. e3 {[%clk 0:02:53.2]} 3... c6 {[%clk 0:02:43.3]}
4. Nd2 {[%clk 0:02:49.6]} 4... Nd7 {[%clk 0:02:38]} 5. Bd3 {[%clk 0:02:43.5]}
5... Ndf6 {[%clk 0:02:32.1]} 6. Ngf3 {[%clk 0:02:36.5]} 6... Ne4 {[%clk
0:02:23.4]} 7. Bxe4 {[%clk 0:02:14.8]} 7... fxe4 {[%clk 0:02:08]} 8. Ne5 {[%clk
0:02:14.3]} 8... Nf6 {[%clk 0:02:05.6]} 9. Bxf6 {[%clk 0:02:03.2]} 9... exf6
{[%clk 0:01:55.8]} 10. Qh5+ {[%clk 0:02:01]} 10... g6 {[%clk 0:01:31.5]} 11.
Nxg6 {[%clk 0:01:58.4]} 11... hxg6 {[%clk 0:01:29.2]} 12. Qxh8 {[%clk
0:01:55.6]} 12... Be6 {[%clk 0:01:22.1]} 13. Qh4 {[%clk 0:01:41.5]} 13... Qe7
{[%clk 0:01:16.3]} 14. O-O-O {[%clk 0:01:36.6]} 14... O-O-O {[%clk 0:01:13.9]}
15. Kb1 {[%clk 0:01:33.3]} 15... g5 {[%clk 0:01:07.5]} 16. Qg3 {[%clk
0:01:29.4]} 16... Qd7 {[%clk 0:01:06]} 17. f4 {[%clk 0:01:26.9]} 17... Bd6
{[%clk 0:01:00.4]} 18. Qf2 {[%clk 0:01:23.9]} 18... gxf4 {[%clk 0:00:59.2]} 19.
exf4 {[%clk 0:01:24.2]} 19... Rg8 {[%clk 0:00:50.5]} 20. g3 {[%clk 0:01:24.2]}
20... Bg4 {[%clk 0:00:47.1]} 21. Rc1 {[%clk 0:01:22.8]} 21... Qe7 {[%clk
0:00:43.7]} 22. Qe3 {[%clk 0:01:11.7]} 22... Bb4 {[%clk 0:00:35.2]} 23. c3
{[%clk 0:01:11.3]} 23... Ba5 {[%clk 0:00:35.3]} 24. h3 {[%clk 0:00:58.4]} 24...
Bd7 {[%clk 0:00:31.8]} 25. g4 {[%clk 0:00:58.6]} 25... Bc7 {[%clk 0:00:31]} 26.
f5 {[%clk 0:00:52.1]} 26... Rh8 {[%clk 0:00:25.5]} 27. c4 {[%clk 0:00:50.5]}
27... Kb8 {[%clk 0:00:23]} 28. cxd5 {[%clk 0:00:50.2]} 28... cxd5 {[%clk
0:00:22.6]} 29. Rc5 {[%clk 0:00:35.4]} 29... Bc6 {[%clk 0:00:21.7]} 30. Rhc1
{[%clk 0:00:32.4]} 30... Bb6 {[%clk 0:00:20.3]} 31. R5c3 {[%clk 0:00:31]} 31...
Qb4 {[%clk 0:00:19.2]} 32. a3 {[%clk 0:00:30]} 32... Qxd4 {[%clk 0:00:18.4]} 33.
Nb3 {[%clk 0:00:17.5]} 33... Qxe3 {[%clk 0:00:17.8]} 0-1

[Event "*** Titled Tuesday Blitz"]
[Site "Chess.com"]
[Date "2021.03.16"]
[Round "8"]
[White "Volodar_Murzin"]
[Black "ckgchess"]
[Result "1-0"]
[WhiteElo "2690"]
[BlackElo "2755"]
[TimeControl "180+1"]
[EndTime "11:27:52 PDT"]
[Termination "Volodar_Murzin won by checkmate"]

1. e4 {[%clk 0:02:53.8]} 1... c5 {[%clk 0:03:00]} 2. Nf3 {[%clk 0:02:52.8]} 2...
d6 {[%clk 0:03:00.5]} 3. Bb5+ {[%clk 0:02:51.2]} 3... Nd7 {[%clk 0:03:00.4]} 4.
O-O {[%clk 0:02:50.7]} 4... a6 {[%clk 0:03:00.9]} 5. Bd3 {[%clk 0:02:50]} 5...
Ngf6 {[%clk 0:02:59.5]} 6. c3 {[%clk 0:02:49.9]} 6... g5 {[%clk 0:02:53]} 7. Bc2
{[%clk 0:02:36]} 7... g4 {[%clk 0:02:52.9]} 8. Ne1 {[%clk 0:02:33.3]} 8... b5
{[%clk 0:02:46.1]} 9. d4 {[%clk 0:02:32.2]} 9... Bb7 {[%clk 0:02:46.6]} 10. Nd2
{[%clk 0:02:23.8]} 10... h5 {[%clk 0:02:37]} 11. a4 {[%clk 0:02:16]} 11... h4
{[%clk 0:02:27.7]} 12. Qe2 {[%clk 0:02:08.7]} 12... cxd4 {[%clk 0:02:06.5]} 13.
cxd4 {[%clk 0:02:07]} 13... e6 {[%clk 0:01:48.7]} 14. Nd3 {[%clk 0:01:58.5]}
14... Qb6 {[%clk 0:01:36.6]} 15. d5 {[%clk 0:01:50.7]} 15... g3 {[%clk
0:01:18.6]} 16. Nf3 {[%clk 0:01:36.8]} 16... gxh2+ {[%clk 0:01:06.1]} 17. Kh1
{[%clk 0:01:34.9]} 17... h3 {[%clk 0:01:06.5]} 18. g3 {[%clk 0:01:29.3]} 18...
exd5 {[%clk 0:01:06.7]} 19. exd5+ {[%clk 0:01:27.6]} 19... Kd8 {[%clk
0:01:01.7]} 20. a5 {[%clk 0:01:14.2]} 20... Qc7 {[%clk 0:00:58]} 21. Nb4 {[%clk
0:01:05.8]} 21... Nxd5 {[%clk 0:00:54.5]} 22. Nxd5 {[%clk 0:00:59.7]} 22... Bxd5
{[%clk 0:00:55.4]} 23. Be4 {[%clk 0:00:59.5]} 23... Qb7 {[%clk 0:00:41.6]} 24.
Bxd5 {[%clk 0:00:46.4]} 24... Qxd5 {[%clk 0:00:42.5]} 25. Rd1 {[%clk 0:00:44.9]}
25... Qb7 {[%clk 0:00:31.4]} 26. Kxh2 {[%clk 0:00:41.1]} 26... Rh5 {[%clk
0:00:26]} 27. Bf4 {[%clk 0:00:36.7]} 27... Rf5 {[%clk 0:00:17]} 28. Rac1 {[%clk
0:00:22.7]} 28... Rc8 {[%clk 0:00:16.5]} 29. Re1 {[%clk 0:00:16.6]} 29... Rxc1
{[%clk 0:00:10.8]} 30. Qe8+ {[%clk 0:00:13.7]} 30... Kc7 {[%clk 0:00:11.1]} 31.
Rxc1+ {[%clk 0:00:13.3]} 31... Rc5 {[%clk 0:00:11.8]} 32. Rxc5+ {[%clk
0:00:13.1]} 32... Nxc5 {[%clk 0:00:12.7]} 33. Qxf8 {[%clk 0:00:13]} 33... Qxf3
{[%clk 0:00:11.3]} 34. Qxd6+ {[%clk 0:00:13]} 34... Kb7 {[%clk 0:00:08.9]} 35.
Qc7+ {[%clk 0:00:12.8]} 35... Ka8 {[%clk 0:00:08.6]} 36. Qb8# {[%clk 0:00:13.4]}
1-0

[Event "*** Titled Tuesday Blitz"]
[Site "Chess.com"]
[Date "2021.03.16"]
[Round "8"]
[White "zajka-molotok"]
[Black "Matthew-Fishbein"]
[Result "1-0"]
[WhiteElo "2533"]
[BlackElo "2316"]
[TimeControl "180+1"]
[EndTime "11:27:53 PDT"]
[Termination "zajka-molotok won by resignation"]

1. b4 {[%clk 0:03:00.9]} 1... Nf6 {[%clk 0:02:57.5]} 2. Bb2 {[%clk 0:03:00.5]}
2... e6 {[%clk 0:02:57.8]} 3. b5 {[%clk 0:03:00.5]} 3... d5 {[%clk 0:02:57.4]}
4. e3 {[%clk 0:03:00.4]} 4... Be7 {[%clk 0:02:57.5]} 5. Nf3 {[%clk 0:03:00.2]}
5... O-O {[%clk 0:02:57.9]} 6. c4 {[%clk 0:02:57.9]} 6... c5 {[%clk 0:02:53.1]}
7. Be2 {[%clk 0:02:55.4]} 7... a6 {[%clk 0:02:52.6]} 8. a4 {[%clk 0:02:54.7]}
8... axb5 {[%clk 0:02:52.6]} 9. axb5 {[%clk 0:02:55.6]} 9... Rxa1 {[%clk
0:02:52.4]} 10. Bxa1 {[%clk 0:02:56.5]} 10... b6 {[%clk 0:02:43.6]} 11. O-O
{[%clk 0:02:55.8]} 11... Bb7 {[%clk 0:02:42.8]} 12. d4 {[%clk 0:02:50.5]} 12...
Nbd7 {[%clk 0:02:42.5]} 13. Nc3 {[%clk 0:02:49.9]} 13... Qc7 {[%clk 0:02:38.2]}
14. cxd5 {[%clk 0:02:44.1]} 14... exd5 {[%clk 0:02:27.7]} 15. Ne5 {[%clk
0:02:29.8]} 15... Nxe5 {[%clk 0:02:19.4]} 16. dxe5 {[%clk 0:02:30.7]} 16... Qxe5
{[%clk 0:02:17.7]} 17. Bf3 {[%clk 0:02:26.2]} 17... Qe6 {[%clk 0:02:11.5]} 18.
Ne2 {[%clk 0:02:14.4]} 18... Ne4 {[%clk 0:01:54.7]} 19. Nf4 {[%clk 0:02:13.6]}
19... Qf5 {[%clk 0:01:44.7]} 20. Nh5 {[%clk 0:01:53.4]} 20... f6 {[%clk
0:01:27.1]} 21. Nf4 {[%clk 0:01:45.2]} 21... Rd8 {[%clk 0:01:21.1]} 22. Bg4
{[%clk 0:01:43.9]} 22... Qg5 {[%clk 0:01:11.9]} 23. Ne6 {[%clk 0:01:42.5]} 23...
Qg6 {[%clk 0:00:58.9]} 24. Nxd8 {[%clk 0:01:42.3]} 24... Bxd8 {[%clk 0:00:55.4]}
25. Be6+ {[%clk 0:01:42.3]} 25... Kf8 {[%clk 0:00:53.3]} 26. Bxd5 {[%clk
0:01:42.1]} 26... Bxd5 {[%clk 0:00:40.3]} 27. Qxd5 {[%clk 0:01:43]} 27... Bc7
{[%clk 0:00:37.3]} 28. Qa8+ {[%clk 0:01:35]} 28... Ke7 {[%clk 0:00:33.9]} 29.
Qb7 {[%clk 0:01:33.1]} 29... Kd7 {[%clk 0:00:20]} 30. Rd1+ {[%clk 0:01:32.3]}
30... Nd6 {[%clk 0:00:20.2]} 31. Qc6+ {[%clk 0:01:31.1]} 31... Kd8 {[%clk
0:00:19.6]} 32. Rxd6+ {[%clk 0:01:28.3]} 32... Bxd6 {[%clk 0:00:20.1]} 33. Qxd6+
{[%clk 0:01:28.9]} 33... Ke8 {[%clk 0:00:18.6]} 34. Qd1 {[%clk 0:01:21.6]} 34...
c4 {[%clk 0:00:18.2]} 35. Bd4 {[%clk 0:01:19]} 35... Qf5 {[%clk 0:00:17]} 36.
Bxb6 {[%clk 0:01:14]} 36... Qxb5 {[%clk 0:00:16.8]} 37. Bd4 {[%clk 0:01:10.2]}
37... Qb4 {[%clk 0:00:17]} 38. Qc1 {[%clk 0:01:09.5]} 38... Qb3 {[%clk
0:00:15.1]} 39. h3 {[%clk 0:01:08.4]} 39... h5 {[%clk 0:00:15.5]} 40. Qc3 {[%clk
0:01:07.1]} 40... Qb1+ {[%clk 0:00:15.5]} 41. Kh2 {[%clk 0:01:07.3]} 41... Qb8+
{[%clk 0:00:15.6]} 42. f4 {[%clk 0:01:05.1]} 42... Qc8 {[%clk 0:00:15.4]} 43. e4
{[%clk 0:00:54.4]} 43... h4 {[%clk 0:00:13.6]} 44. e5 {[%clk 0:00:52.6]} 44...
Qf5 {[%clk 0:00:09.5]} 45. Qxc4 {[%clk 0:00:42.3]} 45... Qxf4+ {[%clk
0:00:09.3]} 46. Kh1 {[%clk 0:00:42.3]} 46... Ke7 {[%clk 0:00:04.7]} 47. Bc5+
{[%clk 0:00:39.3]} 1-0

[Event "*** Titled Tuesday Blitz"]
[Site "Chess.com"]
[Date "2021.03.16"]
[Round "8"]
[White "QuintilianoR"]
[Black "bazar-wokzal"]
[Result "0-1"]
[WhiteElo "2719"]
[BlackElo "2519"]
[TimeControl "180+1"]
[EndTime "11:27:54 PDT"]
[Termination "bazar-wokzal won by resignation"]

1. d4 {[%clk 0:03:00.9]} 1... Nf6 {[%clk 0:02:59.7]} 2. c4 {[%clk 0:03:01.3]}
2... Nc6 {[%clk 0:02:59.7]} 3. Nf3 {[%clk 0:03:00.5]} 3... e6 {[%clk 0:02:59.6]}
4. a3 {[%clk 0:03:00.4]} 4... g6 {[%clk 0:02:58.8]} 5. d5 {[%clk 0:02:48.6]}
5... Ne7 {[%clk 0:02:56]} 6. Nc3 {[%clk 0:02:47.1]} 6... Bg7 {[%clk 0:02:55.6]}
7. e4 {[%clk 0:02:43]} 7... d6 {[%clk 0:02:55.8]} 8. Be2 {[%clk 0:02:36.7]} 8...
O-O {[%clk 0:02:55.4]} 9. O-O {[%clk 0:02:34.7]} 9... c6 {[%clk 0:02:55.5]} 10.
h3 {[%clk 0:02:28.3]} 10... cxd5 {[%clk 0:02:46.2]} 11. cxd5 {[%clk 0:02:27.1]}
11... exd5 {[%clk 0:02:46.1]} 12. exd5 {[%clk 0:02:28]} 12... Nf5 {[%clk
0:02:24.3]} 13. Re1 {[%clk 0:02:15.5]} 13... Re8 {[%clk 0:02:23.1]} 14. Bd3
{[%clk 0:02:13.9]} 14... Bd7 {[%clk 0:02:21.5]} 15. Bf4 {[%clk 0:02:11.2]} 15...
Rxe1+ {[%clk 0:02:19.7]} 16. Qxe1 {[%clk 0:02:11.1]} 16... Qb6 {[%clk
0:02:19.8]} 17. Qd2 {[%clk 0:02:05.1]} 17... Rc8 {[%clk 0:02:14.6]} 18. Rd1
{[%clk 0:01:43.1]} 18... Nh5 {[%clk 0:02:09]} 19. Bxf5 {[%clk 0:01:36.1]} 19...
Bxf5 {[%clk 0:02:06.4]} 20. Be3 {[%clk 0:01:36.3]} 20... Bxc3 {[%clk 0:01:39.4]}
21. bxc3 {[%clk 0:01:34.6]} 21... Qb3 {[%clk 0:01:38.7]} 22. g4 {[%clk
0:01:28.3]} 22... Be4 {[%clk 0:01:32]} 23. Nd4 {[%clk 0:01:01.6]} 23... Qxd5
{[%clk 0:01:31.2]} 24. gxh5 {[%clk 0:01:00.5]} 24... Qxh5 {[%clk 0:01:31.2]} 25.
f3 {[%clk 0:00:55.7]} 25... Bxf3 {[%clk 0:01:26.4]} 26. Rf1 {[%clk 0:00:43.1]}
26... Be4 {[%clk 0:01:20.1]} 27. Kh2 {[%clk 0:00:41.2]} 27... Qc5 {[%clk
0:01:01.8]} 28. Qf2 {[%clk 0:00:24]} 28... f5 {[%clk 0:00:51.6]} 29. Bf4 {[%clk
0:00:18.2]} 29... Qxa3 {[%clk 0:00:47.2]} 30. Ne2 {[%clk 0:00:17.5]} 30... Qc5
{[%clk 0:00:43.1]} 31. Be3 {[%clk 0:00:17.6]} 31... Qc4 {[%clk 0:00:40.2]} 32.
Bd4 {[%clk 0:00:17.6]} 32... Re8 {[%clk 0:00:31.9]} 33. Ng3 {[%clk 0:00:16.5]}
33... b5 {[%clk 0:00:26.3]} 34. Re1 {[%clk 0:00:16.9]} 34... b4 {[%clk 0:00:26]}
35. cxb4 {[%clk 0:00:17.8]} 35... Qxb4 {[%clk 0:00:25]} 36. Ra1 {[%clk
0:00:18.1]} 36... a5 {[%clk 0:00:24.6]} 37. Qe3 {[%clk 0:00:16.6]} 37... Rc8
{[%clk 0:00:22.5]} 38. Re1 {[%clk 0:00:15.3]} 38... Rc2+ {[%clk 0:00:21.7]} 39.
Ne2 {[%clk 0:00:15.9]} 39... Qxe1 {[%clk 0:00:20.6]} 0-1

[Event "*** Titled Tuesday Blitz"]
[Site "Chess.com"]
[Date "2021.03.16"]
[Round "8"]
[White "MuhittinBuker"]
[Black "Playgood28"]
[Result "1/2-1/2"]
[WhiteElo "2186"]
[BlackElo "2270"]
[TimeControl "180+1"]
[EndTime "11:27:58 PDT"]
[Termination "Game drawn by repetition"]

1. d4 {[%clk 0:03:00.9]} 1... f5 {[%clk 0:02:59.3]} 2. c4 {[%clk 0:03:00.6]}
2... Nf6 {[%clk 0:02:58.4]} 3. Nc3 {[%clk 0:03:01]} 3... g6 {[%clk 0:02:57.6]}
4. Nf3 {[%clk 0:02:59.6]} 4... d6 {[%clk 0:02:55.5]} 5. g3 {[%clk 0:02:59.5]}
5... Bg7 {[%clk 0:02:55.4]} 6. Bg2 {[%clk 0:03:00.1]} 6... O-O {[%clk
0:02:55.4]} 7. O-O {[%clk 0:03:00.6]} 7... c6 {[%clk 0:02:55.4]} 8. d5 {[%clk
0:03:00]} 8... e5 {[%clk 0:02:54.5]} 9. dxe6 {[%clk 0:02:59.7]} 9... Bxe6 {[%clk
0:02:54.9]} 10. Bf4 {[%clk 0:02:57.8]} 10... Bxc4 {[%clk 0:02:44.2]} 11. Bxd6
{[%clk 0:02:57.3]} 11... Re8 {[%clk 0:02:43.4]} 12. Re1 {[%clk 0:02:55]} 12...
Na6 {[%clk 0:02:41.1]} 13. Bf4 {[%clk 0:02:33.3]} 13... Nd5 {[%clk 0:02:33.5]}
14. Nxd5 {[%clk 0:02:31.9]} 14... Bxd5 {[%clk 0:02:27.6]} 15. Ng5 {[%clk
0:02:12.1]} 15... Bxg2 {[%clk 0:02:19.2]} 16. Kxg2 {[%clk 0:02:11.7]} 16... Qxd1
{[%clk 0:02:09.4]} 17. Raxd1 {[%clk 0:02:08]} 17... h6 {[%clk 0:02:09.1]} 18.
Nf3 {[%clk 0:02:05.8]} 18... Rad8 {[%clk 0:02:07.7]} 19. Kf1 {[%clk 0:01:39.3]}
19... Nb4 {[%clk 0:02:01.5]} 20. Rxd8 {[%clk 0:01:28.9]} 20... Rxd8 {[%clk
0:01:59.4]} 21. a3 {[%clk 0:01:29.1]} 21... Nd5 {[%clk 0:01:52.4]} 22. Bc1
{[%clk 0:01:26.5]} 22... Nb6 {[%clk 0:01:36]} 23. e3 {[%clk 0:01:13.3]} 23...
Na4 {[%clk 0:01:30.8]} 24. Nd4 {[%clk 0:01:11.9]} 24... Kf7 {[%clk 0:01:24.1]}
25. Ke2 {[%clk 0:01:06]} 25... Bxd4 {[%clk 0:01:21.6]} 26. exd4 {[%clk
0:01:04.3]} 26... Re8+ {[%clk 0:01:10.7]} 27. Be3 {[%clk 0:00:57.2]} 27... Nb6
{[%clk 0:01:03.3]} 28. Kd3 {[%clk 0:00:56.1]} 28... h5 {[%clk 0:01:01.4]} 29.
Rc1 {[%clk 0:00:54.3]} 29... Nd5 {[%clk 0:01:00.7]} 30. Bd2 {[%clk 0:00:52.5]}
30... a6 {[%clk 0:00:55.7]} 31. h4 {[%clk 0:00:48.1]} 31... f4 {[%clk
0:00:48.5]} 32. Bxf4 {[%clk 0:00:38.9]} 32... Nxf4+ {[%clk 0:00:46.8]} 33. gxf4
{[%clk 0:00:39.1]} 33... Kf6 {[%clk 0:00:46.4]} 34. Rg1 {[%clk 0:00:39]} 34...
Re7 {[%clk 0:00:41]} 35. Rg5 {[%clk 0:00:38.4]} 35... Re1 {[%clk 0:00:39.9]} 36.
f5 {[%clk 0:00:32]} 36... gxf5 {[%clk 0:00:32.9]} 37. f4 {[%clk 0:00:29.9]}
37... Rd1+ {[%clk 0:00:25]} 38. Ke3 {[%clk 0:00:23.8]} 38... Re1+ {[%clk
0:00:24.3]} 39. Kd3 {[%clk 0:00:21.9]} 39... Rd1+ {[%clk 0:00:23.8]} 40. Kc3
{[%clk 0:00:20.2]} 40... Rc1+ {[%clk 0:00:18.1]} 41. Kd2 {[%clk 0:00:18.9]}
41... Rf1 {[%clk 0:00:17.4]} 42. Ke3 {[%clk 0:00:18.7]} 42... Re1+ {[%clk
0:00:17]} 43. Kd3 {[%clk 0:00:18.8]} 1/2-1/2

[Event "*** Titled Tuesday Blitz"]
[Site "Chess.com"]
[Date "2021.03.16"]
[Round "8"]
[White "enriquetejedor"]
[Black "SergeyShtyka"]
[Result "1/2-1/2"]
[WhiteElo "2530"]
[BlackElo "2414"]
[TimeControl "180+1"]
[EndTime "11:27:59 PDT"]
[Termination "Game drawn by repetition"]

1. d4 {[%clk 0:03:00.9]} 1... c5 {[%clk 0:02:59.7]} 2. d5 {[%clk 0:03:00.9]}
2... e5 {[%clk 0:02:59.5]} 3. dxe6 {[%clk 0:03:00]} 3... fxe6 {[%clk 0:02:58.9]}
4. e4 {[%clk 0:03:00.5]} 4... Nc6 {[%clk 0:02:58.1]} 5. Nc3 {[%clk 0:03:00.2]}
5... Nf6 {[%clk 0:02:57.3]} 6. Nf3 {[%clk 0:02:52.1]} 6... d6 {[%clk 0:02:56.9]}
7. e5 {[%clk 0:02:51.3]} 7... Nxe5 {[%clk 0:02:49.3]} 8. Nxe5 {[%clk 0:02:51.1]}
8... dxe5 {[%clk 0:02:50.2]} 9. Qxd8+ {[%clk 0:02:51.6]} 9... Kxd8 {[%clk
0:02:51.1]} 10. g3 {[%clk 0:02:52.5]} 10... Bd7 {[%clk 0:02:37.8]} 11. Bg2
{[%clk 0:02:48.7]} 11... Kc7 {[%clk 0:02:37.7]} 12. O-O {[%clk 0:02:43.2]} 12...
Bc6 {[%clk 0:02:37.9]} 13. Bd2 {[%clk 0:02:42]} 13... Bxg2 {[%clk 0:02:36.7]}
14. Kxg2 {[%clk 0:02:42.5]} 14... Be7 {[%clk 0:02:30]} 15. Rfe1 {[%clk
0:02:42.5]} 15... Rhd8 {[%clk 0:02:24.9]} 16. Re2 {[%clk 0:02:33.6]} 16... a6
{[%clk 0:02:01.1]} 17. Rd1 {[%clk 0:02:19.4]} 17... b5 {[%clk 0:01:59]} 18. Rxe5
{[%clk 0:02:16.2]} 18... Rd6 {[%clk 0:01:05.3]} 19. Rxc5+ {[%clk 0:01:52.3]}
19... Rc6 {[%clk 0:01:01]} 20. Bf4+ {[%clk 0:01:50.6]} 20... Kb7 {[%clk
0:00:58.7]} 21. Rxc6 {[%clk 0:01:44.6]} 21... Kxc6 {[%clk 0:00:58.7]} 22. Ne2
{[%clk 0:01:45.5]} 22... Nd5 {[%clk 0:00:57.2]} 23. Nd4+ {[%clk 0:01:44.9]}
23... Kd7 {[%clk 0:00:57.2]} 24. Be5 {[%clk 0:01:44.9]} 24... Bf6 {[%clk
0:00:54.6]} 25. Bxf6 {[%clk 0:01:42]} 25... gxf6 {[%clk 0:00:55.5]} 26. a4
{[%clk 0:01:42.6]} 26... bxa4 {[%clk 0:00:41.1]} 27. c4 {[%clk 0:01:41.8]} 27...
Nb6 {[%clk 0:00:39.9]} 28. c5 {[%clk 0:01:41.4]} 28... Nd5 {[%clk 0:00:39.4]}
29. Ra1 {[%clk 0:01:36]} 29... e5 {[%clk 0:00:32.7]} 30. Nf5 {[%clk 0:01:19.8]}
30... Kc6 {[%clk 0:00:32.7]} 31. Rxa4 {[%clk 0:01:20.1]} 31... Kxc5 {[%clk
0:00:32.3]} 32. Rh4 {[%clk 0:01:20.6]} 32... Rb8 {[%clk 0:00:26.5]} 33. Rxh7
{[%clk 0:01:19.8]} 33... Rxb2 {[%clk 0:00:26.2]} 34. h4 {[%clk 0:01:19.7]} 34...
e4 {[%clk 0:00:14.5]} 35. Rh5 {[%clk 0:00:39.2]} 35... Kc4 {[%clk 0:00:13]} 36.
Nd6+ {[%clk 0:00:35.9]} 36... Kd4 {[%clk 0:00:11.3]} 37. Nf5+ {[%clk 0:00:20]}
37... Kc4 {[%clk 0:00:11]} 38. Kg1 {[%clk 0:00:14.8]} 38... Rb1+ {[%clk
0:00:10.8]} 39. Kg2 {[%clk 0:00:11.5]} 39... Rb2 {[%clk 0:00:11.7]} 1/2-1/2